bitfinex-derivatives/quotes_BNBF0:USTF0_20251225
["timestamp","ask_amount","ask_price","bid_price","bid_amount"]
[1766657811513,0.70280628,839.42,838.62,1.78497909]
[1766657811710,0.70280628,839.41,838.62,1.78497909]
[1766657812013,0.70280628,839.4,838.62,1.78497909]
[1766657812310,0.70280628,839.39,838.62,1.78497909]
[1766657812614,0.70280628,839.38,838.6,1.78497909]
[1766657812814,0.70280628,839.37,838.6,1.78497909]
[1766657813011,0.70280628,839.36,838.6,1.78497909]
[1766657813209,0.70280628,839.35,838.6,1.78497909]
[1766657813510,0.89041097,839.62,838.6,1.78497909]
[1766657813715,0.702792,839.61,838.6,1.78497909]
[1766657813915,0.702792,839.6,838.6,1.78497909]
[1766657814215,0.702792,839.59,838.6,1.78497909]
[1766657814412,0.702792,839.58,838.6,1.78497909]
[1766657814719,0.702792,839.57,838.6,1.78497909]
[1766657814912,0.702792,839.56,838.6,1.78497909]
[1766657815211,0.702792,839.55,838.6,1.78497909]
[1766657815515,0.89041097,839.62,838.6,1.78497909]
[1766657815516,0.702792,839.54,838.6,1.78497909]
[1766657815715,0.702792,839.53,838.6,1.78497909]
[1766657815916,0.702792,839.52,838.6,1.78497909]
[1766657816116,0.702792,839.51,838.6,1.78497909]
[1766657816317,0.702792,839.5,838.59,1.78497909]
[1766657816616,0.89041097,839.61,838.59,1.78497909]
[1766657816617,0.702792,839.49,838.59,1.78497909]
[1766657816814,0.702792,839.48,838.55,1.78497909]
[1766657817115,0.702792,839.47,838.55,1.78497909]
[1766657817314,0.702792,839.46,838.55,1.78497909]
[1766657817515,0.702792,839.45,838.54,1.78497909]
[1766657817717,0.702792,839.44,838.54,1.78497909]
[1766657818018,0.702792,839.43,838.54,1.78497909]
[1766657818221,0.702792,839.42,838.54,1.78497909]
[1766657818517,0.702792,839.41,838.54,1.78497909]
[1766657818720,0.702792,839.4,838.54,1.78497909]
[1766657819016,0.702792,839.39,838.54,1.78497909]
[1766657819218,0.702792,839.38,838.54,1.78497909]
[1766657819417,0.702792,839.37,838.45,1.78497909]
[1766657819622,0.702792,839.36,838.43,1.78497909]
[1766657819822,0.702792,839.35,838.43,1.78497909]
[1766657820022,0.702792,839.34,838.43,1.78497909]
[1766657820222,0.702792,839.33,838.43,1.78497909]
[1766657820421,0.702792,839.32,838.38,1.78497909]
[1766657820718,0.702792,839.31,838.38,1.78497909]
[1766657820920,0.702792,839.3,838.38,1.78497909]
[1766657821121,0.702792,839.29,838.38,1.78497909]
[1766657821322,0.702792,839.28,838.27,1.78497909]
[1766657821523,0.702792,839.27,838.27,1.78497909]
[1766657821822,0.702792,839.26,838.27,1.78497909]
[1766657822016,0.702792,839.25,838.27,1.78497909]
[1766657822221,0.702792,839.24,838.27,1.78497909]
[1766657822423,0.702792,839.23,838.25,1.78497909]
[1766657822622,0.702792,839.23,837.68,0.20732241]
[1766657822623,0.702792,839.22,838.29,1.78497909]
[1766657822820,0.89041097,839.45,838.29,1.78497909]
[1766657822821,0.702792,839.21,838.29,1.78497909]
[1766657823025,0.702792,839.2,838.29,1.78497909]
[1766657823220,0.702792,839.19,838.29,1.78497909]
[1766657823422,0.89041097,839.47,838.28,1.78497909]
[1766657823626,0.68019799,839.46,838.28,1.78497909]
[1766657823923,0.68019799,839.45,838.28,1.78497909]
[1766657824121,0.68019799,839.44,838.28,1.78497909]
[1766657824323,0.68019799,839.43,838.27,1.78497909]
[1766657824523,0.68019799,839.42,838.27,1.78497909]
[1766657824723,0.68019799,839.41,838.27,1.78497909]
[1766657824924,0.68019799,839.4,838.27,1.78497909]
[1766657825125,0.68019799,839.39,838.27,1.78497909]
[1766657825330,0.68019799,839.38,838.26,1.78497909]
[1766657825630,0.68019799,839.37,838.26,1.78497909]
[1766657825826,0.68019799,839.36,838.26,1.78497909]
[1766657826026,0.68019799,839.35,838.26,1.78497909]
[1766657826226,0.68019799,839.34,838.26,1.78497909]
[1766657826426,0.68019799,839.33,838.25,1.78497909]
[1766657826631,0.68019799,839.32,838.25,1.78497909]
[1766657826830,0.68019799,839.31,838.25,1.78497909]
[1766657827131,0.68019799,839.3,838.25,1.78497909]
[1766657827430,0.68019799,839.29,838.24,1.78497909]
[1766657827633,0.68019799,839.28,838.24,1.78497909]
[1766657827832,0.68019799,839.27,838.24,1.78497909]
[1766657828127,0.68019799,839.26,838.24,1.78497909]
[1766657828332,0.68019799,839.26,837.68,0.20732241]
[1766657828333,0.68019799,839.25,838.23,1.78497909]
[1766657828530,0.68019799,839.24,838.23,1.78497909]
[1766657828734,0.89041097,839.51,838.23,1.78497909]
[1766657828934,0.67929711,839.5,838.23,1.78497909]
[1766657829133,0.67929711,839.49,838.23,1.78497909]
[1766657829330,0.67929711,839.48,838.23,1.78497909]
[1766657829629,0.67929711,839.47,838.23,1.78497909]
[1766657829929,0.67929711,839.46,838.23,1.78497909]
[1766657830236,0.67929711,839.45,838.23,1.78497909]
[1766657830533,0.89041097,839.52,837.68,0.20732241]
[1766657830534,0.67929711,839.44,838.22,1.78497909]
[1766657830732,0.67929711,839.43,838.22,1.78497909]
[1766657830932,0.67929711,839.42,838.22,1.78497909]
[1766657831134,0.67929711,839.41,838.22,1.78497909]
[1766657831436,0.67929711,839.4,838.22,1.78497909]
[1766657831630,0.67929711,839.39,838.22,1.78497909]
[1766657831833,0.67929711,839.38,838.22,1.78497909]
[1766657832030,0.67929711,839.37,838.22,1.78497909]
[1766657832234,0.67929711,839.36,838.22,1.78497909]
[1766657832435,0.67929711,839.35,838.21,1.78497909]
[1766657832631,0.67929711,839.34,838.21,1.78497909]
[1766657832835,0.67929711,839.33,838.21,1.78497909]
[1766657833036,0.67929711,839.32,838.21,1.78497909]
[1766657833332,0.67929711,839.31,838.21,1.78497909]
[1766657833536,0.67929711,839.3,838.21,1.78497909]
[1766657833832,0.67929711,839.29,838.21,1.78497909]
[1766657834032,0.67929711,839.28,838.21,1.78497909]
[1766657834235,0.67929711,839.27,838.21,1.78497909]
[1766657834435,0.89041097,839.54,838.21,1.78497909]
[1766657834635,0.67875179,839.53,838.21,1.78497909]
[1766657834930,0.67875179,839.52,838.21,1.78497909]
[1766657835231,0.67875179,839.51,838.21,1.78497909]
[1766657835434,0.67875179,839.5,838.2,1.78497909]
[1766657835632,0.67875179,839.49,838.2,1.78497909]
[1766657835831,0.67875179,839.49,837.68,0.20732241]
[1766657835832,0.67875179,839.48,838.22,1.78497909]
[1766657836037,0.67875179,839.47,838.22,1.78497909]
[1766657836333,0.67875179,839.46,838.22,1.78497909]
[1766657836536,0.67875179,839.45,838.22,1.78497909]
[1766657836832,0.67875179,839.44,838.22,1.78497909]
[1766657837031,0.67875179,839.43,838.23,1.78497909]
[1766657837236,0.67875179,839.42,838.23,1.78497909]
[1766657837536,0.67875179,839.41,838.22,1.78497909]
[1766657837732,0.67875179,839.4,838.22,1.78497909]
[1766657837936,0.67875179,839.39,838.22,1.78497909]
[1766657838133,0.67875179,839.38,838.22,1.78497909]
[1766657838338,0.67875179,839.37,838.22,1.78497909]
[1766657838534,0.67875179,839.36,838.22,1.78497909]
[1766657838740,0.67875179,839.35,838.22,1.78497909]
[1766657838939,0.67875179,839.34,838.22,1.78497909]
[1766657839243,0.67875179,839.33,838.22,1.78497909]
[1766657839436,0.67875179,839.32,838.22,1.78497909]
[1766657839637,0.67875179,839.31,838.22,1.78497909]
[1766657839840,0.67875179,839.3,838.22,1.78497909]
[1766657840036,0.89041097,839.57,838.22,1.78497909]
[1766657840235,0.67702849,839.56,838.22,1.78497909]
[1766657840441,0.67702849,839.55,838.22,1.78497909]
[1766657840639,0.67702849,839.54,838.22,1.78497909]
[1766657840837,0.67702849,839.53,838.22,1.78497909]
[1766657841137,0.67702849,839.52,838.22,1.78497909]
[1766657841341,0.67702849,839.51,838.22,1.78497909]
[1766657841541,0.67702849,839.5,838.23,1.78497909]
[1766657841741,0.67702849,839.49,838.22,1.78497909]
[1766657842041,0.67702849,839.48,838.22,1.78497909]
[1766657842337,0.67702849,839.47,838.23,1.78497909]
[1766657842542,0.67702849,839.46,838.23,1.78497909]
[1766657842841,0.67702849,839.45,838.23,1.78497909]
[1766657843038,0.67702849,839.44,838.23,1.78497909]
[1766657843238,0.67702849,839.43,838.23,1.78497909]
[1766657843437,0.67702849,839.42,838.21,1.78497909]
[1766657843638,0.67702849,839.41,838.21,1.78497909]
[1766657843840,0.67702849,839.4,838.21,1.78497909]
[1766657844042,0.67702849,839.39,838.21,1.78497909]
[1766657844240,0.67702849,839.38,838.21,1.78497909]
[1766657844442,0.67702849,839.37,838.21,1.78497909]
[1766657844738,0.67702849,839.36,838.21,1.78497909]
[1766657844942,0.67702849,839.35,838.21,1.78497909]
[1766657845239,0.67702849,839.34,838.21,1.78497909]
[1766657845439,0.67702849,839.33,838.21,1.78497909]
[1766657845638,0.67702849,839.32,838.21,1.78497909]
[1766657845836,0.67702849,839.31,838.21,1.78497909]
[1766657846036,0.89041097,839.54,838.21,1.78497909]
[1766657846037,0.67702849,839.3,838.21,1.78497909]
[1766657846241,0.67702849,839.29,838.21,1.78497909]
[1766657846444,0.67702849,839.28,838.21,1.78497909]
[1766657846640,0.67702849,839.27,838.21,1.78497909]
[1766657846843,0.89041097,839.54,838.21,1.78497909]
[1766657847040,0.67713224,839.53,838.21,1.78497909]
[1766657847244,0.67713224,839.52,838.21,1.78497909]
[1766657847443,0.67713224,839.51,838.21,1.78497909]
[1766657847644,0.67713224,839.5,838.21,1.78497909]
[1766657847842,0.67713224,839.49,838.21,1.78497909]
[1766657848147,0.67713224,839.48,838.21,1.78497909]
[1766657848451,0.67713224,839.47,838.21,1.78497909]
[1766657848642,0.67713224,839.46,838.21,1.78497909]
[1766657848845,0.67713224,839.45,838.21,1.78497909]
[1766657849142,0.67713224,839.44,838.21,1.78497909]
[1766657849341,0.67713224,839.43,838.22,1.78497909]
[1766657849547,0.67713224,839.42,838.22,1.78497909]
[1766657849745,0.67713224,839.41,838.22,1.78497909]
[1766657849946,0.67713224,839.4,838.22,1.78497909]
[1766657850143,0.67713224,839.39,838.22,1.78497909]
[1766657850344,0.67713224,839.38,838.22,1.78497909]
[1766657850543,0.67713224,839.37,838.22,1.78497909]
[1766657850747,0.67713224,839.36,838.22,1.78497909]
[1766657850942,0.67713224,839.35,838.22,1.78497909]
[1766657851147,0.67713224,839.34,838.22,1.78497909]
[1766657851343,0.67713224,839.33,838.22,1.78497909]
[1766657851647,0.67713224,839.32,838.22,1.78497909]
[1766657851943,0.67713224,839.31,838.22,1.78497909]
[1766657852247,0.89041097,839.53,838.22,1.78497909]
[1766657852248,0.67713224,839.3,838.22,1.78497909]
[1766657852445,0.67713224,839.29,838.23,1.78497909]
[1766657852746,0.67713224,839.28,838.23,1.78497909]
[1766657852947,0.67713224,839.27,838.23,1.78497909]
[1766657853145,0.67713224,839.26,838.23,1.78497909]
[1766657853343,0.89041097,839.53,838.23,1.78497909]
[1766657853344,0.67756759,839.25,838.23,1.78497909]
[1766657853544,0.89041097,839.52,838.23,1.78497909]
[1766657853747,0.67756759,839.51,838.23,1.78497909]
[1766657853945,0.67756759,839.5,838.23,1.78497909]
[1766657854144,0.67756759,839.49,838.23,1.78497909]
[1766657854350,0.67756759,839.48,838.23,1.78497909]
[1766657854548,0.67756759,839.47,838.24,1.78497909]
[1766657854744,0.67756759,839.46,838.24,1.78497909]
[1766657854944,0.67756759,839.45,838.24,1.78497909]
[1766657855147,0.67756759,839.44,838.24,1.78497909]
[1766657855343,0.67756759,839.43,838.24,1.78497909]
[1766657855544,0.67756759,839.42,838.24,1.78497909]
[1766657855744,0.67756759,839.41,838.24,1.78497909]
[1766657855945,0.67756759,839.4,838.24,1.78497909]
[1766657856247,0.67756759,839.39,838.25,1.78497909]
[1766657856445,0.67756759,839.38,838.25,1.78497909]
[1766657856646,0.67756759,839.37,838.25,1.78497909]
[1766657856846,0.67756759,839.36,838.25,1.78497909]
[1766657857051,0.67756759,839.35,838.25,1.78497909]
[1766657857249,0.67756759,839.34,838.25,1.78497909]
[1766657857453,0.67756759,839.33,838.26,1.78497909]
[1766657857654,0.67756759,839.32,838.26,1.78497909]
[1766657857852,0.89041097,839.49,838.26,1.78497909]
[1766657857853,0.67756759,839.31,838.26,1.78497909]
[1766657858050,0.67756759,839.3,838.26,1.78497909]
[1766657858249,0.67756759,839.29,838.26,1.78497909]
[1766657858460,0.67756759,839.28,838.27,1.78497909]
[1766657858755,0.67756759,839.27,838.27,1.78497909]
[1766657858954,0.67756759,839.26,838.27,1.78497909]
[1766657859152,0.67756759,839.25,838.27,1.78497909]
[1766657859352,0.67756759,839.24,838.28,1.78497909]
[1766657859554,0.67756759,839.23,838.28,1.78497909]
[1766657859754,0.67756759,839.22,838.28,1.78497909]
[1766657859952,0.67756759,839.21,838.28,1.78497909]
[1766657860150,0.67756759,839.2,838.28,1.78497909]
[1766657860356,0.67877618,839.19,838.28,1.78497909]
[1766657860556,0.89041097,839.46,838.29,1.78497909]
[1766657860751,0.67877618,839.45,838.29,1.78497909]
[1766657861052,0.67877618,839.44,838.29,1.78497909]
[1766657861253,0.67877618,839.43,838.29,1.78497909]
[1766657861452,0.67877618,839.42,838.31,1.78497909]
[1766657861654,0.67877618,839.41,838.31,1.78497909]
[1766657861954,0.67877618,839.4,838.31,1.78497909]
[1766657862154,0.67877618,839.39,838.31,1.78497909]
[1766657862355,0.67877618,839.38,838.31,1.78497909]
[1766657862560,0.67877618,839.37,838.32,1.78497909]
[1766657862753,0.67877618,839.36,838.32,1.78497909]
[1766657862954,0.67877618,839.35,838.32,1.78497909]
[1766657863156,0.67877618,839.34,838.32,1.78497909]
[1766657863355,0.67877618,839.33,838.35,1.78497909]
[1766657863556,0.67877618,839.32,838.35,1.78497909]
[1766657863754,0.67877618,839.31,838.35,1.78497909]
[1766657863962,0.67976034,839.3,838.35,1.78497909]
[1766657864259,0.67976034,839.29,838.35,1.78497909]
[1766657864457,0.67976034,839.28,838.37,1.78497909]
[1766657864659,0.67976034,839.27,838.37,1.78497909]
[1766657864855,0.67976034,839.26,838.37,1.78497909]
[1766657865062,0.67976034,839.25,838.37,1.78497909]
[1766657865261,0.67976034,839.24,838.37,1.78497909]
[1766657865460,0.67976034,839.23,838.37,1.78497909]
[1766657865659,0.67976034,839.22,838.37,1.78497909]
[1766657865858,0.67976034,839.21,838.37,1.78497909]
[1766657866064,0.67976034,839.2,838.37,1.78497909]
[1766657866263,0.67976034,839.19,838.37,1.78497909]
[1766657866463,0.67976034,839.18,838.37,1.78497909]
[1766657866763,0.67976034,839.17,838.37,1.78497909]
[1766657866964,0.67976034,839.16,838.37,1.78497909]
[1766657867161,0.67976034,839.15,838.37,1.78497909]
[1766657867464,0.67976034,839.14,838.37,1.78497909]
[1766657867665,0.67976034,839.13,838.37,1.78497909]
[1766657867961,0.67976034,839.12,838.37,1.78497909]
[1766657868160,0.67976034,839.11,838.37,1.78497909]
[1766657868372,0.891014,839.38,838.37,1.78497909]
[1766657868565,0.6807553,839.37,838.37,1.78497909]
[1766657868860,0.6807553,839.36,838.37,1.78497909]
[1766657869165,0.6807553,839.35,838.37,1.78497909]
[1766657869359,0.6807553,839.34,838.37,1.78497909]
[1766657869563,0.6807553,839.33,838.37,1.78497909]
[1766657869763,0.6807553,839.32,838.37,1.78497909]
[1766657869961,0.6807553,839.31,838.37,1.78497909]
[1766657870162,0.6807553,839.3,838.37,1.78497909]
[1766657870361,0.6807553,839.29,838.37,1.78497909]
[1766657870564,0.6807553,839.28,838.37,1.78497909]
[1766657870765,0.6807553,839.27,838.37,1.78497909]
[1766657870962,0.6807553,839.26,838.37,1.78497909]
[1766657871161,0.6807553,839.25,838.37,1.78497909]
[1766657871366,0.6807553,839.24,838.37,1.78497909]
[1766657871666,0.6807553,839.23,838.37,1.78497909]
[1766657871864,0.6807553,839.22,838.37,1.78497909]
[1766657872164,0.6807553,839.21,838.37,1.78497909]
[1766657872364,0.6807553,839.2,838.37,1.78497909]
[1766657872569,0.6807553,839.19,838.37,1.78497909]
[1766657872764,0.6807553,839.18,838.37,1.78497909]
[1766657872967,0.6807553,839.17,838.37,1.78497909]
[1766657873267,0.6807553,839.16,838.37,1.78497909]
[1766657873567,0.6807553,839.15,838.37,1.78497909]
[1766657873767,0.6807553,839.14,838.37,1.78497909]
[1766657874065,0.6807553,839.13,838.37,1.78497909]
[1766657874269,0.6807553,839.12,838.37,1.78497909]
[1766657874467,0.6807553,839.11,838.37,1.78497909]
[1766657874666,0.891014,839.38,838.37,1.78497909]
[1766657874869,0.68074262,839.37,838.37,1.78497909]
[1766657875165,0.68074262,839.36,838.37,1.78497909]
[1766657875368,0.68074262,839.35,838.37,1.78497909]
[1766657875665,0.68074262,839.34,838.37,1.78497909]
[1766657875870,0.68074262,839.33,838.37,1.78497909]
[1766657876169,0.891014,839.38,838.37,1.78497909]
[1766657876170,0.68074262,839.32,838.37,1.78497909]
[1766657876369,0.68074262,839.31,838.37,1.78497909]
[1766657876572,0.68074262,839.3,838.37,1.78497909]
[1766657876771,0.68074262,839.29,838.37,1.78497909]
[1766657877071,0.68074262,839.28,838.37,1.78497909]
[1766657877271,0.68074262,839.27,838.37,1.78497909]
[1766657877470,0.68074262,839.26,838.37,1.78497909]
[1766657877667,0.68074262,839.25,838.37,1.78497909]
[1766657877866,0.68074262,839.24,838.37,1.78497909]
[1766657878066,0.68074262,839.23,838.37,1.78497909]
[1766657878271,0.68074262,839.22,838.37,1.78497909]
[1766657878468,0.68074262,839.21,838.39,1.78497909]
[1766657878672,2.95255099,840.31,837.69,0.20737121]
[1766657878673,0.68074262,839.2,838.43,1.78497909]
[1766657878873,0.891014,839.47,838.45,1.78497909]
[1766657879173,0.68026929,839.46,838.45,1.78497909]
[1766657879371,0.68026929,839.45,838.46,1.78497909]
[1766657879570,0.68026929,839.44,838.46,1.78497909]
[1766657879872,0.68026929,839.43,838.46,1.78497909]
[1766657880070,0.68026929,839.42,838.46,1.78497909]
[1766657880268,0.68026929,839.41,838.46,1.78497909]
[1766657880471,0.68026929,839.4,838.46,1.78497909]
[1766657880670,0.68026929,839.39,838.46,1.78497909]
[1766657880869,0.68026929,839.38,838.46,1.78497909]
[1766657881073,0.68026929,839.37,838.46,1.78497909]
[1766657881273,0.68026929,839.36,838.46,1.78497909]
[1766657881471,0.68026929,839.35,838.46,1.78497909]
[1766657881674,0.68026929,839.34,838.46,1.78497909]
[1766657881871,0.20735391,839.58,838.56,1.78497909]
[1766657882072,0.67997534,839.57,838.56,1.78497909]
[1766657882374,0.67997534,839.56,838.54,1.78497909]
[1766657882570,0.67997534,839.55,838.54,1.78497909]
[1766657882773,0.67997534,839.54,838.54,1.78497909]
[1766657882971,0.67997534,839.53,838.54,1.78497909]
[1766657883172,0.67997534,839.52,838.53,1.78497909]
[1766657883383,0.67997534,839.51,838.53,1.78497909]
[1766657883676,0.67997534,839.5,838.53,1.78497909]
[1766657883873,0.67997534,839.49,838.53,1.78497909]
[1766657884072,0.67997534,839.48,838.53,1.78497909]
[1766657884274,0.67997534,839.47,838.54,1.78497909]
[1766657884474,0.67997534,839.46,838.54,1.78497909]
[1766657884675,0.67997534,839.45,838.54,1.78497909]
[1766657884877,0.67997534,839.44,838.54,1.78497909]
[1766657885078,0.67997534,839.43,838.54,1.78497909]
[1766657885278,0.67997534,839.42,838.53,1.78497909]
[1766657885480,0.67997534,839.41,838.53,1.78497909]
[1766657885678,0.20735391,839.58,838.53,1.78497909]
[1766657885877,0.67884893,839.57,838.53,1.78497909]
[1766657886080,0.67884893,839.56,838.53,1.78497909]
[1766657886281,0.67884893,839.55,838.52,1.78497909]
[1766657886481,0.67884893,839.54,838.52,1.78497909]
[1766657886683,0.67884893,839.53,838.52,1.78497909]
[1766657886881,0.67884893,839.52,838.52,1.78497909]
[1766657887082,0.67884893,839.51,838.52,1.78497909]
[1766657887379,0.67884893,839.51,837.91,2.96320121]
[1766657887380,0.67884893,839.5,838.51,1.78497909]
[1766657887584,0.67884893,839.49,838.51,1.78497909]
[1766657887783,0.67884893,839.48,838.51,1.78497909]
[1766657888083,0.67884893,839.47,838.51,1.78497909]
[1766657888284,0.67884893,839.46,838.5,1.78497909]
[1766657888484,0.67884893,839.45,838.5,1.78497909]
[1766657888685,0.67884893,839.44,838.5,1.78497909]
[1766657888878,0.67884893,839.43,838.5,1.78497909]
[1766657889082,0.20735391,839.58,838.5,1.78497909]
[1766657889282,0.67816003,839.57,838.5,1.78497909]
[1766657889482,0.67816003,839.56,838.5,1.78497909]
[1766657889783,0.67816003,839.55,838.5,1.78497909]
[1766657889984,0.67816003,839.54,838.5,1.78497909]
[1766657890179,0.67816003,839.53,838.49,1.78497909]
[1766657890384,0.67816003,839.52,838.49,1.78497909]
[1766657890583,0.67816003,839.51,838.49,1.78497909]
[1766657890784,0.67816003,839.5,838.49,1.78497909]
[1766657891079,0.67816003,839.49,838.49,1.78497909]
[1766657891283,0.67816003,839.48,838.49,1.78497909]
[1766657891479,0.67816003,839.47,838.49,1.78497909]
[1766657891684,0.67816003,839.46,838.49,1.78497909]
[1766657891884,0.67816003,839.45,838.49,1.78497909]
[1766657892085,0.20735391,839.58,838.49,1.78497909]
[1766657892384,0.67785701,839.57,838.48,1.78497909]
[1766657892581,0.67785701,839.56,838.48,1.78497909]
[1766657892784,0.67785701,839.55,838.48,1.78497909]
[1766657892984,0.67785701,839.54,838.48,1.78497909]
[1766657893181,0.67785701,839.53,838.48,1.78497909]
[1766657893394,0.67785701,839.52,838.48,1.78497909]
[1766657893583,0.20735391,839.58,838.48,1.78497909]
[1766657893584,0.67785701,839.51,838.48,1.78497909]
[1766657893882,0.67785701,839.5,838.48,1.78497909]
[1766657894083,0.67785701,839.49,838.48,1.78497909]
[1766657894385,0.67773191,839.48,838.48,1.78497909]
[1766657894586,0.67773191,839.47,838.48,1.78497909]
[1766657894785,0.67773191,839.46,838.48,1.78497909]
[1766657894984,0.20735391,839.58,838.48,1.78497909]
[1766657895185,0.67771699,839.57,838.48,1.78497909]
[1766657895383,0.67771699,839.56,838.48,1.78497909]
[1766657895586,0.67771699,839.55,838.48,1.78497909]
[1766657895784,0.67771699,839.54,838.48,1.78497909]
[1766657895984,0.67771699,839.53,838.48,1.78497909]
[1766657896182,0.67771699,839.52,838.48,1.78497909]
[1766657896486,0.67771699,839.51,838.48,1.78497909]
[1766657896787,0.67771699,839.5,838.48,1.78497909]
[1766657897083,0.67771699,839.49,838.48,1.78497909]
[1766657897287,0.67771699,839.48,838.47,1.78497909]
[1766657897585,0.67771699,839.47,838.47,1.78497909]
[1766657897784,0.20731315,839.69,838.47,1.78497909]
[1766657897982,0.67996114,839.68,838.47,1.78497909]
[1766657898183,0.67996114,839.67,838.47,1.78497909]
[1766657898383,0.67996114,839.66,838.47,1.78497909]
[1766657898685,0.67996114,839.65,838.47,1.78497909]
[1766657898984,0.67996114,839.64,838.47,1.78497909]
[1766657899187,0.67996114,839.63,838.54,1.78497909]
[1766657899486,0.67996114,839.62,838.54,1.78497909]
[1766657899688,0.67996114,839.61,838.54,1.78497909]
[1766657899888,0.67996114,839.6,838.54,1.78497909]
[1766657900088,0.67996114,839.59,838.54,1.78497909]
[1766657900294,0.67996114,839.58,838.54,1.78497909]
[1766657900495,0.67996114,839.57,838.54,1.78497909]
[1766657900685,0.67996114,839.56,838.54,1.78497909]
[1766657900884,0.67996114,839.55,838.54,1.78497909]
[1766657901089,0.20731315,839.69,838.54,1.78497909]
[1766657901289,0.67925934,839.68,838.53,1.78497909]
[1766657901489,0.67925934,839.67,838.53,1.78497909]
[1766657901696,0.67925934,839.66,838.53,1.78497909]
[1766657901889,0.67925934,839.65,838.53,1.78497909]
[1766657902087,0.67925934,839.64,838.53,1.78497909]
[1766657902385,0.67925934,839.63,838.53,1.78497909]
[1766657902584,0.67925934,839.62,838.53,1.78497909]
[1766657902788,0.67925934,839.61,838.53,1.78497909]
[1766657902989,0.67925934,839.6,838.53,1.78497909]
[1766657903188,0.67925934,839.59,838.53,1.78497909]
[1766657903395,0.67925934,839.58,838.53,1.78497909]
[1766657903593,0.67925934,839.57,838.53,1.78497909]
[1766657903793,0.67925934,839.56,838.53,1.78497909]
[1766657903995,0.20731315,839.69,838.53,1.78497909]
[1766657904196,0.67915633,839.68,838.53,1.78497909]
[1766657904492,0.67915633,839.67,838.53,1.78497909]
[1766657904695,0.67915633,839.66,838.53,1.78497909]
[1766657904992,0.67915633,839.65,838.53,1.78497909]
[1766657905191,0.67915633,839.64,838.52,1.78497909]
[1766657905397,0.67915633,839.63,838.52,1.78497909]
[1766657905595,0.67915633,839.62,838.52,1.78497909]
[1766657905791,0.67915633,839.61,838.52,1.78497909]
[1766657905995,0.67915633,839.6,838.52,1.78497909]
[1766657906297,0.20729401,839.79,838.59,1.78497909]
[1766657906495,0.67907764,839.78,838.59,1.78497909]
[1766657906696,0.67907764,839.77,838.59,1.78497909]
[1766657906993,0.67907764,839.76,838.59,1.78497909]
[1766657907197,0.67907764,839.75,838.59,1.78497909]
[1766657907396,0.67907764,839.74,838.59,1.78497909]
[1766657907597,0.67907764,839.73,838.59,1.78497909]
[1766657907791,0.67907764,839.72,838.59,1.78497909]
[1766657907996,0.67907764,839.71,838.59,1.78497909]
[1766657908194,0.67907764,839.7,838.59,1.78497909]
[1766657908393,0.67907764,839.69,838.59,1.78497909]
[1766657908597,0.67907764,839.68,838.59,1.78497909]
[1766657908894,0.67907764,839.67,838.59,1.78497909]
[1766657909093,0.67907764,839.66,838.59,1.78497909]
[1766657909292,0.67907764,839.65,838.59,1.78497909]
[1766657909497,0.67907764,839.64,838.59,1.78497909]
[1766657909694,0.20729401,839.79,838.59,1.78497909]
[1766657909893,0.67893877,839.78,838.59,1.78497909]
[1766657910191,0.67893877,839.77,838.58,1.78497909]
[1766657910398,0.67893877,839.76,838.58,1.78497909]
[1766657910594,0.67893877,839.75,838.58,1.78497909]
[1766657910897,0.67893877,839.74,838.58,1.78497909]
[1766657911095,0.67893877,839.73,838.58,1.78497909]
[1766657911299,0.67893877,839.72,838.58,1.78497909]
[1766657911498,0.67893877,839.71,838.58,1.78497909]
[1766657911699,0.67893877,839.7,838.58,1.78497909]
[1766657911995,0.67893877,839.69,838.58,1.78497909]
[1766657912199,0.67893877,839.68,838.58,1.78497909]
[1766657912397,0.67893877,839.67,838.58,1.78497909]
[1766657912596,0.67893877,839.66,838.58,1.78497909]
[1766657912798,0.67893877,839.65,838.58,1.78497909]
[1766657912996,0.67893877,839.64,838.58,1.78497909]
[1766657913195,0.20729401,839.79,838.58,1.78497909]
[1766657913498,0.67895071,839.78,838.59,1.78497909]
[1766657913699,0.67895071,839.77,838.59,1.78497909]
[1766657913899,0.67895071,839.76,838.59,1.78497909]
[1766657914100,0.67895071,839.75,838.58,1.78497909]
[1766657914300,0.67895071,839.74,838.59,1.78497909]
[1766657914497,0.67895071,839.73,838.59,1.78497909]
[1766657914700,0.67895071,839.72,838.59,1.78497909]
[1766657915001,0.67895071,839.71,838.59,1.78497909]
[1766657915202,0.67895071,839.7,838.59,1.78497909]
[1766657915402,0.67895071,839.69,838.59,1.78497909]
[1766657915702,0.67895071,839.68,838.59,1.78497909]
[1766657915902,0.67895071,839.67,838.59,1.78497909]
[1766657916202,0.67895071,839.66,838.59,1.78497909]
[1766657916404,0.67895071,839.65,838.59,1.78497909]
[1766657916600,0.67895071,839.64,838.59,1.78497909]
[1766657916803,0.67895071,839.63,838.59,1.78497909]
[1766657917105,0.20729401,839.79,838.59,1.78497909]
[1766657917404,0.67909914,839.78,838.6,1.78497909]
[1766657917605,0.67909914,839.77,838.6,1.78497909]
[1766657917805,0.67909914,839.76,838.6,1.78497909]
[1766657918105,0.67909914,839.75,838.6,1.78497909]
[1766657918404,0.67909914,839.74,838.6,1.78497909]